bitfinex/quotes_BTCUSD_20250224
["timestamp","ask_amount","ask_price","bid_price","bid_amount"]
[1740407025351,0.40063689,95626.0,95625.0,0.03260493]
[1740407025557,0.40063689,95626.0,95625.0,0.02960493]
[1740407025773,0.40063689,95626.0,95625.0,0.03130393]
[1740407026643,0.40063689,95626.0,95625.0,0.02930393]
[1740407026856,0.40063689,95626.0,95625.0,0.03130393]
[1740407027209,0.40063689,95626.0,95625.0,0.02930393]
[1740407030781,0.39211284,95626.0,95625.0,0.02930393]
[1740407032008,0.38883877,95626.0,95625.0,0.02930393]
[1740407032833,0.37625709,95626.0,95625.0,0.02930393]
[1740407034805,0.15,95626.0,95625.0,0.02930393]
[1740407035033,0.0008495,95631.0,95625.0,0.02930393]
[1740407036893,0.14739347,95632.0,95625.0,0.02930393]
[1740407037016,0.00786065,95630.0,95625.0,0.02930393]
[1740407038946,0.13868209,95632.0,95625.0,0.02930393]
[1740407039142,0.0008496,95630.0,95625.0,0.02930393]
[1740407041483,0.0008496,95630.0,95629.0,0.232056]
[1740407041597,0.0008496,95630.0,95629.0,0.279656]
[1740407041807,0.0008496,95630.0,95629.0,0.31090686]
[1740407042657,0.0008496,95630.0,95629.0,0.15405086]
[1740407042858,0.156828,95646.0,95629.0,0.15805086]
[1740407043011,0.156833,95643.0,95629.0,0.16205086]
[1740407043210,0.209105,95646.0,95629.0,0.16205086]
[1740407043460,0.156829,95645.0,95629.0,0.16205086]
[1740407043625,0.156829,95645.0,95629.0,0.15805086]
[1740407043829,0.16458767,95646.0,95629.0,0.15405086]
[1740407044394,0.00775967,95646.0,95629.0,0.15405086]
[1740407044795,0.15144146,95647.0,95629.0,0.15405086]
[1740407045017,0.156828,95646.0,95629.0,0.15405086]
[1740407045217,0.156828,95646.0,95629.0,0.31090686]
[1740407045652,0.156828,95646.0,95629.0,0.15405086]
[1740407046586,0.15,95648.0,95629.0,0.15405086]
[1740407046701,0.156829,95646.0,95629.0,0.15405086]
[1740407047108,0.156826,95647.0,95629.0,0.31090586]
[1740407047609,0.156825,95648.0,95630.0,0.156854]
[1740407047834,0.156827,95647.0,95630.0,0.03044851]
[1740407048040,0.156825,95648.0,95629.0,0.1396809]
[1740407048312,0.15683,95645.0,95629.0,0.1396809]
[1740407048521,0.149,95649.0,95629.0,0.2965349]
[1740407048760,0.156827,95647.0,95629.0,0.2965349]
[1740407048935,0.00777617,95646.0,95629.0,0.2965349]
[1740407049496,0.16460417,95646.0,95629.0,0.1396809]
[1740407049896,0.00777617,95646.0,95629.0,0.1396809]
[1740407050137,0.00777617,95646.0,95629.0,0.2965359]
[1740407050410,0.00777617,95646.0,95629.0,0.1396809]
[1740407050613,0.16460417,95646.0,95629.0,0.1396809]
[1740407050794,0.13986187,95646.0,95629.0,0.1396809]
[1740407050989,0.0008495,95647.0,95629.0,0.2965359]
[1740407051193,0.3076755,95647.0,95630.0,0.156854]
[1740407051631,0.3076765,95647.0,95630.0,0.20545216]
[1740407052204,0.1576765,95647.0,95630.0,0.04859816]
[1740407052628,0.1576765,95647.0,95630.0,0.15831781]
[1740407052834,0.0008495,95647.0,95630.0,0.15831781]
[1740407053017,0.0008495,95647.0,95630.0,0.20172777]
[1740407053515,0.00781987,95646.0,95630.0,0.20172777]
[1740407053709,0.00781987,95646.0,95630.0,0.04487377]
[1740407053917,0.00781987,95646.0,95632.0,0.156849]
[1740407054119,0.00781987,95646.0,95633.0,0.0795]
[1740407054549,0.1508495,95647.0,95633.0,0.12461779]
[1740407054768,0.14583204,95646.0,95633.0,0.12461779]
[1740407054991,0.156828,95646.0,95633.0,0.12461779]
[1740407055459,0.15683,95645.0,95633.0,0.12461779]
[1740407056137,0.156834,95642.0,95633.0,0.12461779]
[1740407056352,0.156832,95644.0,95633.0,0.12461779]
[1740407056556,0.0008495,95647.0,95633.0,0.12461779]
[1740407056754,0.19762016,95647.0,95633.0,0.12461779]
[1740407056963,0.156831,95645.0,95633.0,0.12461779]
[1740407057386,0.15,95649.0,95633.0,0.12461779]
[1740407057602,0.156832,95644.0,95633.0,0.12461779]
[1740407057805,0.15,95649.0,95633.0,0.12461779]
[1740407058428,0.156828,95646.0,95633.0,0.12461779]
[1740407058559,0.00799907,95647.0,95633.0,0.12461779]
[1740407058560,0.15683,95645.0,95633.0,0.12461779]
[1740407058771,0.1447031,95645.0,95633.0,0.12461779]
[1740407058990,0.156831,95644.0,95633.0,0.12461779]
[1740407059802,0.15683,95645.0,95633.0,0.12461779]
[1740407060004,0.00799907,95647.0,95635.0,0.156845]
[1740407060183,0.00799907,95647.0,95633.0,0.12461779]
[1740407060399,0.00799907,95647.0,95635.0,0.05146888]
[1740407060576,0.00799907,95647.0,95633.0,0.28839954]
[1740407060792,0.00799907,95647.0,95634.0,0.156847]
[1740407061196,0.03182928,95652.0,95637.0,0.075]
[1740407061394,0.03182928,95652.0,95644.0,0.15683]
[1740407061548,0.03182928,95652.0,95651.0,0.15682]
[1740407061761,0.03182928,95652.0,95651.0,0.1187622]
[1740407062804,0.01971255,95652.0,95651.0,0.1187622]
[1740407063074,0.0008494,95652.0,95651.0,0.1187622]
[1740407063710,0.0008494,95652.0,95651.0,0.1207622]
[1740407063916,0.0008494,95652.0,95651.0,0.1217622]
[1740407064769,0.13890487,95659.0,95651.0,0.1217622]
[1740407065007,0.17866184,95659.0,95651.0,0.1217622]
[1740407065818,0.03975697,95659.0,95651.0,0.1217622]
[1740407066224,0.0008496,95687.0,95667.0,0.156793]
[1740407066433,0.0008496,95687.0,95667.0,0.1273]
[1740407066561,0.209018,95686.0,95667.0,0.16890961]
[1740407066766,0.08011492,95675.0,95668.0,0.156791]
[1740407066998,0.08011492,95675.0,95669.0,0.15679]
[1740407067203,0.08011492,95675.0,95668.0,0.04047874]
[1740407067204,0.11886485,95675.0,95674.0,0.14930541]
[1740407067406,0.03874993,95675.0,95674.0,0.22810541]
[1740407067580,0.00043256,95675.0,95674.0,0.28490641]
[1740407068003,0.00043256,95675.0,95674.0,0.135601]
[1740407068939,0.15678,95675.0,95674.0,0.135601]
[1740407069062,0.15678,95675.0,95674.0,0.056801]
[1740407069464,0.046,95691.0,95667.0,0.11986774]
[1740407069697,0.156791,95669.0,95659.0,0.0802]
[1740407069897,1.01424669,95690.0,95674.0,0.003]
[1740407069898,0.365822,95675.0,95674.0,0.003]
[1740407070068,0.365822,95675.0,95674.0,0.005]
[1740407070304,0.209037,95677.0,95674.0,0.003]
[1740407070507,0.359011,95689.0,95664.0,0.156797]
[1740407070672,0.15,95687.0,95665.0,0.00146334]
[1740407070880,0.15,95687.0,95669.0,0.209054]
[1740407070881,0.13782323,95687.0,95669.0,0.209054]
[1740407071080,0.13782323,95687.0,95674.0,0.002]
[1740407071279,0.00544328,95690.0,95674.0,0.002]
[1740407071280,0.156764,95685.0,95674.0,0.002]
[1740407071482,0.21445228,95690.0,95674.0,0.002]
[1740407071723,0.00544328,95690.0,95674.0,0.002]
[1740407071924,0.156765,95685.0,95674.0,0.002]
[1740407072130,0.15677,95682.0,95674.0,0.002]
[1740407072334,0.156774,95680.0,95674.0,0.002]
[1740407072729,0.14315622,95680.0,95674.0,0.002]
[1740407073053,0.14315622,95680.0,95667.0,0.12368973]
[1740407073206,0.15,95682.0,95667.0,0.12368973]
[1740407073407,0.15,95682.0,95668.0,0.0462]
[1740407073631,0.15,95682.0,95668.0,0.09875239]
[1740407074036,0.15,95682.0,95674.0,0.001]
[1740407074195,0.306759,95688.0,95669.0,0.0315633]
[1740407074403,0.15,95686.0,95674.0,0.002]
[1740407074606,0.156764,95686.0,95674.0,0.002]
[1740407074806,0.14464297,95686.0,95674.0,0.002]
[1740407075248,0.156762,95686.0,95674.0,0.002]
[1740407075459,0.00010399,95691.0,95685.0,0.083228]
[1740407075663,0.00010399,95691.0,95687.0,0.156761]
[1740407075868,0.00010399,95691.0,95686.0,0.17774569]
[1740407076011,0.0008494,95690.0,95687.0,0.04178771]
[1740407076214,0.0008494,95690.0,95686.0,0.21630854]
[1740407076412,0.0008494,95690.0,95686.0,0.17774569]
[1740407076707,0.0008494,95690.0,95686.0,0.22736399]
[1740407076864,0.02896996,95692.0,95686.0,0.22736399]
[1740407077023,0.0008495,95693.0,95686.0,0.23336399]
[1740407077229,0.0008495,95693.0,95686.0,0.23036399]
[1740407077838,0.0008495,95693.0,95686.0,0.23136399]
[1740407078038,0.03895436,95693.0,95686.0,0.23336399]
[1740407078458,0.03895436,95693.0,95686.0,0.1307183]
[1740407078707,0.02663031,95693.0,95686.0,0.1307183]
[1740407078922,0.15,95696.0,95686.0,0.1307183]
[1740407078923,0.156752,95692.0,95686.0,0.1267183]
[1740407079165,0.15,95696.0,95686.0,0.1267183]
[1740407079166,0.156755,95691.0,95686.0,0.1267183]
[1740407079363,0.2098485,95694.0,95686.0,0.1297183]
[1740407079364,0.0008495,95694.0,95686.0,0.1297183]
[1740407079664,0.0008495,95694.0,95686.0,0.0516183]
[1740407079665,0.156761,95687.0,95686.0,0.0516183]
[1740407079876,0.156772,95680.0,95678.0,0.10982948]
[1740407080081,0.156772,95680.0,95678.0,0.07940399]
[1740407080288,0.156774,95679.0,95678.0,0.03063347]
[1740407080487,0.306774,95679.0,95678.0,0.00010399]
[1740407080830,0.29482926,95679.0,95678.0,0.04169115]
[1740407081028,0.29482926,95679.0,95678.0,0.00010399]
[1740407081232,0.29482926,95679.0,95678.0,0.04325686]
[1740407081433,0.29482926,95679.0,95678.0,0.00410399]
[1740407081816,0.30277544,95679.0,95678.0,0.00410399]
[1740407082618,0.30277544,95679.0,95678.0,0.00010399]
[1740407082939,0.29160112,95679.0,95678.0,0.00010399]
[1740407084819,0.27914792,95679.0,95678.0,0.00010399]
[1740407085022,0.27914792,95679.0,95678.0,0.04714495]
[1740407086876,0.15794618,95679.0,95678.0,0.04714495]
[1740407087375,0.31472018,95679.0,95678.0,0.04714495]
[1740407088762,0.30272298,95679.0,95678.0,0.04714495]
[1740407090486,0.209029,95681.0,95678.0,0.04714495]
[1740407090683,0.14449707,95679.0,95678.0,0.04714495]
[1740407091115,0.15216789,95679.0,95678.0,0.04714495]
[1740407092812,0.14146708,95679.0,95678.0,0.04714495]
[1740407094891,0.12823156,95679.0,95678.0,0.04714495]
[1740407096669,0.11607539,95679.0,95678.0,0.04714495]
[1740407096869,0.16444482,95679.0,95678.0,0.04714495]
[1740407098751,0.15151679,95679.0,95678.0,0.04714495]
[1740407100170,0.15151679,95679.0,95678.0,0.04884415]
[1740407100369,0.6622933,95679.0,95655.0,0.0801]
[1740407100625,0.2682988,95679.0,95678.0,0.00227144]
[1740407100849,0.156787,95671.0,95670.0,0.0805]
[1740407101052,0.156787,95671.0,95670.0,0.11577524]
[1740407101911,0.156784,95673.0,95670.0,0.11577524]
[1740407102136,0.156787,95671.0,95670.0,0.11577524]
[1740407102368,0.00887911,95679.0,95670.0,0.11777524]
[1740407102588,0.00887911,95679.0,95675.0,0.20598]
[1740407102812,0.00887911,95679.0,95675.0,0.0492]
[1740407103017,0.0009535,95679.0,95675.0,0.07871041]
[1740407103222,0.0009535,95679.0,95678.0,0.234175]
[1740407103635,0.0009535,95679.0,95678.0,0.27153654]
[1740407105492,0.0009535,95679.0,95678.0,0.27653654]
[1740407105981,0.0009535,95679.0,95678.0,0.37718223]
[1740407106177,0.0009535,95679.0,95678.0,0.42058223]
[1740407106399,0.0009535,95679.0,95678.0,0.42658223]
[1740407106709,0.0009535,95679.0,95678.0,0.43158223]
[1740407106910,0.0009535,95679.0,95678.0,0.42658223]
[1740407107075,0.0009535,95679.0,95678.0,0.43358223]
[1740407107885,0.0009535,95679.0,95678.0,0.42758223]
[1740407108083,0.0009535,95679.0,95678.0,0.43458223]
[1740407108874,0.03215697,95699.0,95698.0,0.285743]
[1740407109182,0.0008488,95709.0,95698.0,0.129]
[1740407109387,0.00097847,95709.0,95708.0,0.239026]
[1740407109822,0.04249582,95709.0,95708.0,0.2792831]
[1740407110240,0.04249582,95709.0,95708.0,0.1225571]
[1740407110883,0.03175134,95709.0,95708.0,0.1225571]
[1740407111084,0.0008498,95717.0,95708.0,0.1225571]
[1740407111279,0.04160238,95709.0,95708.0,0.1225571]
[1740407111489,0.0008498,95717.0,95708.0,0.1225571]
[1740407111940,0.04381271,95717.0,95708.0,0.12801968]
[1740407112157,0.20052471,95717.0,95708.0,0.13101968]
[1740407112295,0.0008496,95709.0,95708.0,0.1295571]
[1740407112497,0.0008496,95709.0,95708.0,0.1255571]
[1740407112697,0.18725576,95717.0,95708.0,0.1265571]
[1740407112947,0.18725576,95717.0,95708.0,0.1235571]
[1740407113161,0.18725576,95717.0,95708.0,0.1245571]
[1740407113366,0.18725576,95717.0,95708.0,0.1235571]
[1740407113572,0.03054376,95717.0,95708.0,0.1235571]
[1740407113810,0.18725576,95717.0,95708.0,0.1265571]
[1740407113937,0.156712,95717.0,95708.0,0.1235571]
[1740407114157,0.1575598,95718.0,95708.0,0.1235571]
[1740407114540,0.04376594,95718.0,95709.0,0.00146259]
[1740407114741,0.03271658,95718.0,95712.0,0.156719]
[1740407114972,0.0008499,95721.0,95713.0,0.00146255]
[1740407115575,0.156708,95720.0,95711.0,0.03383455]
[1740407115778,0.19848284,95720.0,95709.0,0.00146254]
[1740407115975,0.19848284,95720.0,95711.0,0.05172327]
[1740407116208,0.04177484,95720.0,95709.0,0.15818754]
[1740407116415,0.04177484,95720.0,95711.0,0.03774269]
[1740407116572,0.04177484,95720.0,95710.0,0.156722]
[1740407116573,0.0008499,95721.0,95712.0,0.00146255]
[1740407116792,0.1476442,95724.0,95712.0,0.00146255]
[1740407116995,0.0008498,95725.0,95719.0,0.208944]
[1740407117194,0.04422302,95725.0,95720.0,0.0831]
[1740407117397,0.04422302,95725.0,95720.0,0.28824703]
[1740407117598,0.04422302,95725.0,95720.0,0.13154103]
[1740407118769,0.0317846,95725.0,95720.0,0.13154103]
[1740407118973,0.0008498,95726.0,95720.0,0.13154103]
[1740407119167,0.04382343,95726.0,95720.0,0.13554103]
[1740407119359,0.208931,95725.0,95720.0,0.13954103]
[1740407119652,0.0008498,95726.0,95720.0,0.05644103]
[1740407119826,0.0008498,95726.0,95720.0,0.004]
[1740407120029,0.0008498,95726.0,95718.0,0.156708]
[1740407120242,0.0008498,95726.0,95719.0,0.156707]
[1740407120440,0.04283294,95726.0,95720.0,0.004]
[1740407120654,0.25176194,95726.0,95720.0,0.004]
[1740407120860,0.03056753,95726.0,95720.0,0.004]
[1740407121059,0.0004,95729.0,95720.0,0.160706]
[1740407121369,0.156693,95728.0,95720.0,0.05157136]
[1740407121705,0.1567,95724.0,95720.0,0.004]
[1740407121846,0.1567,95724.0,95720.0,0.05957353]
[1740407122047,0.0004,95729.0,95720.0,0.004]
[1740407122253,0.209324,95729.0,95719.0,0.004]
[1740407122451,0.157093,95729.0,95720.0,0.156706]
[1740407122682,0.156693,95728.0,95720.0,0.22349531]
[1740407122907,0.04353786,95728.0,95720.0,0.06678931]
[1740407123112,0.04353786,95728.0,95720.0,0.06078931]
[1740407123113,0.156695,95727.0,95720.0,0.06078931]
[1740407123321,0.0004,95729.0,95719.0,0.006]
[1740407123553,0.20893,95726.0,95719.0,0.003]
[1740407123757,0.156707,95720.0,95719.0,0.003]
[1740407123954,0.156701,95724.0,95719.0,0.003]
[1740407124154,0.0008492,95726.0,95719.0,0.003]
[1740407124787,0.208934,95724.0,95719.0,0.003]
[1740407124990,0.2097792,95726.0,95720.0,0.003]
[1740407125163,0.0008492,95726.0,95720.0,0.003]
[1740407125316,0.156703,95723.0,95715.0,0.20310053]
[1740407125529,0.156703,95723.0,95720.0,0.003]
[1740407125731,0.0008492,95726.0,95720.0,0.003]
[1740407125945,0.0008492,95726.0,95725.0,0.156698]
[1740407126362,0.0008492,95726.0,95725.0,0.27468377]
[1740407126925,0.0004,95729.0,95725.0,0.11798577]
[1740407127134,0.156695,95728.0,95725.0,0.12198577]
[1740407128073,0.0004,95729.0,95725.0,0.12198577]
[1740407128276,0.0004,95729.0,95725.0,0.12698577]
[1740407128504,0.0004,95729.0,95725.0,0.11798577]
[1740407128660,0.0004,95729.0,95725.0,0.12298577]
[1740407128867,0.13943306,95731.0,95725.0,0.12698577]
[1740407129232,0.13943306,95731.0,95725.0,0.12198577]
[1740407129443,0.156685,95733.0,95725.0,0.12598577]
[1740407129593,0.156685,95733.0,95725.0,0.12198577]
[1740407129799,0.156687,95732.0,95725.0,0.12198577]
[1740407130348,0.01454085,95769.0,95725.0,0.12498577]
[1740407130570,0.00012965,95738.0,95725.0,0.33537813]
[1740407130764,0.14447833,95735.0,95727.0,0.156695]
[1740407130962,0.13227466,95735.0,95727.0,0.19921466]
[1740407131309,0.04282939,95738.0,95727.0,0.04251966]
[1740407131512,0.04282939,95738.0,95728.0,0.156693]
[1740407131513,0.156679,95737.0,95728.0,0.156693]
[1740407131743,0.15668,95737.0,95728.0,0.0552206]
[1740407131977,0.156689,95731.0,95725.0,0.12375819]
[1740407132183,0.156689,95731.0,95728.0,0.05458506]
[1740407132380,0.208914,95733.0,95725.0,0.12075819]
[1740407132675,0.208907,95736.0,95728.0,0.002]
[1740407132877,0.156692,95729.0,95728.0,0.001]
[1740407133399,0.156697,95726.0,95725.0,0.12375819]
[1740407133599,0.156697,95726.0,95725.0,0.12675819]
[1740407134543,0.156697,95726.0,95725.0,0.12375819]
[1740407134748,0.156697,95726.0,95725.0,0.12075819]
[1740407134901,0.14459277,95726.0,95725.0,0.12075819]
[1740407135462,0.14459277,95726.0,95725.0,0.12575819]
[1740407135892,0.14459277,95726.0,95725.0,0.13075819]
[1740407136797,0.13216508,95726.0,95725.0,0.13075819]
[1740407137414,0.0008492,95731.0,95725.0,0.13075819]
[1740407137618,0.0008492,95731.0,95726.0,0.18733607]
[1740407137821,0.0008492,95731.0,95727.0,0.0471]
[1740407138028,0.0008492,95731.0,95730.0,0.15669]
[1740407138234,0.0008492,95731.0,95730.0,0.34279789]
[1740407138438,0.0008492,95731.0,95730.0,0.385582]
[1740407138948,0.13307731,95741.0,95736.0,0.15668]
[1740407139166,0.156672,95741.0,95735.0,0.15668]
[1740407139409,0.156672,95741.0,95735.0,0.04961284]
[1740407139410,0.156674,95740.0,95735.0,0.04961284]
[1740407139781,0.156674,95740.0,95734.0,0.04074561]
[1740407139992,0.156672,95741.0,95736.0,0.15668]
[1740407140197,0.04333287,95742.0,95741.0,0.156672]
[1740407140609,0.04333287,95742.0,95741.0,0.04084856]
[1740407141010,0.04333287,95742.0,95732.0,0.0014622]
[1740407141196,0.04333287,95742.0,95741.0,0.0441424]
[1740407141391,0.20000387,95742.0,95737.0,0.156678]
[1740407141616,0.20000387,95742.0,95741.0,0.04078276]
[1740407141823,0.25222887,95742.0,95737.0,0.0372742]
[1740407142027,0.04333287,95742.0,95741.0,0.05139701]
[1740407142202,0.156672,95741.0,95736.0,0.156679]
[1740407142377,0.156672,95741.0,95737.0,0.156678]
[1740407142583,0.04333287,95742.0,95737.0,0.156678]
[1740407142817,0.03126369,95742.0,95738.0,0.156676]
[1740407143015,0.0008497,95748.0,95739.0,0.156675]
[1740407143213,0.156672,95742.0,95738.0,0.05703439]
[1740407143535,0.20889,95744.0,95737.0,0.156678]
[1740407143737,0.156669,95743.0,95738.0,0.156676]
[1740407144289,0.156672,95742.0,95738.0,0.04606152]
[1740407144467,0.15667,95743.0,95738.0,0.20273852]
[1740407144641,0.15667,95743.0,95738.0,0.156677]
[1740407144856,0.14402101,95743.0,95738.0,0.20762628]
[1740407145029,0.25050023,95744.0,95738.0,0.05094928]
[1740407145431,0.156669,95743.0,95738.0,0.156677]
[1740407145630,0.156669,95743.0,95738.0,0.21215651]
[1740407146182,0.156669,95743.0,95738.0,0.05547951]
[1740407146497,0.156669,95743.0,95738.0,0.156677]
[1740407146653,0.25050023,95744.0,95738.0,0.05061083]
[1740407146858,0.156671,95742.0,95738.0,0.05061083]
[1740407147162,0.23945275,95744.0,95737.0,0.03305632]
[1740407147284,0.0008491,95742.0,95738.0,0.05930692]
[1740407147488,0.0008491,95742.0,95737.0,0.2084588]
[1740407147746,0.1575201,95742.0,95737.0,0.156678]
[1740407147951,0.1575201,95742.0,95737.0,0.2084588]
[1740407148099,0.156673,95741.0,95737.0,0.0517808]
[1740407148310,0.0008491,95742.0,95735.0,0.03356259]
[1740407148507,0.15668,95736.0,95735.0,0.03356259]
[1740407148713,0.1453738,95729.0,95718.0,0.0466]
[1740407148903,0.1453738,95729.0,95728.0,0.00182785]
[1740407150354,0.1453738,95729.0,95728.0,0.00582785]
[1740407150740,0.13289073,95729.0,95728.0,0.00582785]
[1740407150969,0.13289073,95729.0,95728.0,0.00982785]
[1740407152354,0.13289073,95729.0,95728.0,0.00582785]
[1740407152531,0.13289073,95729.0,95728.0,0.06373495]
[1740407152738,0.13289073,95729.0,95728.0,0.06773495]
[1740407152877,0.11961644,95729.0,95728.0,0.06773495]
[1740407153079,0.11961644,95729.0,95728.0,0.06373495]
[1740407153291,0.11961644,95729.0,95728.0,0.06273495]
[1740407153519,0.11961644,95729.0,95728.0,0.05973495]
[1740407153945,0.11961644,95729.0,95728.0,0.06073495]
[1740407154554,0.0788,95743.0,95728.0,0.06073495]
[1740407154802,0.0798,95757.0,95739.0,0.01192803]
[1740407155036,0.01948282,95744.0,95731.0,0.00146221]
[1740407155236,0.156669,95744.0,95732.0,0.10410785]
[1740407155434,0.208885,95747.0,95732.0,0.10410785]
[1740407155635,0.20887,95753.0,95732.0,0.15540489]
[1740407155836,0.156676,95739.0,95732.0,0.15540489]
[1740407156323,0.156675,95740.0,95732.0,0.15540489]
[1740407156524,0.04293317,95744.0,95732.0,0.15540489]
[1740407156771,0.20887,95753.0,95732.0,0.15540489]
[1740407156772,0.14560722,95740.0,95732.0,0.15540489]
[1740407157628,0.15,95752.0,95732.0,0.15540489]
[1740407157797,0.15667,95743.0,95733.0,0.00146215]
[1740407158004,0.156674,95740.0,95733.0,0.10410784]
[1740407158200,0.156674,95740.0,95733.0,0.141141]
[1740407158524,0.208894,95742.0,95733.0,0.141141]
[1740407158733,0.156666,95745.0,95734.0,0.0014622]
[1740407159012,0.208883,95747.0,95734.0,0.00146218]
[1740407159238,0.156674,95741.0,95733.0,0.141141]
[1740407160204,0.208893,95743.0,95733.0,0.141141]
[1740407160384,0.0420831,95744.0,95733.0,0.141141]
[1740407160538,0.156674,95741.0,95733.0,0.141141]
[1740407160954,0.14374248,95741.0,95733.0,0.141141]
[1740407161151,0.04438998,95744.0,95733.0,0.141141]
[1740407161379,0.04438998,95744.0,95735.0,0.0789]
[1740407161572,0.04438998,95744.0,95736.0,0.10410773]
[1740407161757,0.04438998,95744.0,95736.0,0.14262027]
[1740407162159,0.15667,95743.0,95736.0,0.14115823]
[1740407162378,0.208892,95743.0,95736.0,0.14115823]
[1740407162593,0.04438998,95744.0,95736.0,0.14115823]
[1740407162838,0.18868396,95744.0,95736.0,0.14115823]
[1740407163034,0.18868396,95744.0,95736.0,0.03851254]
[1740407163035,0.156679,95737.0,95736.0,0.03851254]
[1740407163209,0.208895,95742.0,95735.0,0.10888163]
[1740407163406,0.15668,95736.0,95735.0,0.10888163]
[1740407164010,0.208896,95741.0,95735.0,0.10888163]
[1740407164214,0.208903,95739.0,95736.0,0.001]
[1740407164428,0.156679,95737.0,95736.0,0.001]
[1740407164709,0.14465549,95737.0,95736.0,0.001]
[1740407165305,0.208903,95739.0,95736.0,0.001]
[1740407165306,0.156677,95738.0,95736.0,0.001]
[1740407165460,0.156679,95737.0,95736.0,0.001]
[1740407165849,0.156689,95731.0,95730.0,0.02729375]
[1740407166708,0.14374689,95731.0,95730.0,0.02729375]
[1740407167107,0.14374689,95731.0,95730.0,0.03029375]
[1740407167640,0.208906,95737.0,95730.0,0.03329375]
[1740407167840,0.03201696,95744.0,95730.0,0.03329375]
[1740407168045,0.156689,95731.0,95730.0,0.03329375]
[1740407168193,0.03201696,95744.0,95731.0,0.0791]
[1740407168401,0.156672,95742.0,95732.0,0.00146219]
[1740407168606,0.03201696,95744.0,95731.0,0.32578438]
[1740407168607,0.156673,95741.0,95733.0,0.00146224]
[1740407168975,0.156683,95735.0,95731.0,0.11686738]
[1740407169419,0.156684,95734.0,95731.0,0.11686738]
[1740407169632,0.156687,95732.0,95731.0,0.03776738]
[1740407170066,0.156689,95731.0,95730.0,0.03053286]
[1740407170606,0.156689,95731.0,95730.0,0.02953286]
[1740407170812,0.14378367,95731.0,95730.0,0.02953286]
[1740407172471,0.14378367,95731.0,95730.0,0.03253286]
[1740407172699,0.14378367,95731.0,95730.0,0.03553286]
[1740407172880,0.13302783,95731.0,95730.0,0.03553286]
[1740407173463,0.15,95747.0,95731.0,0.0829]
[1740407173675,0.208902,95739.0,95731.0,0.0829]
[1740407173926,0.156679,95737.0,95731.0,0.11515432]
[1740407174101,0.156682,95736.0,95731.0,0.11515432]
[1740407174257,0.15,95747.0,95732.0,0.10264569]
[1740407174460,0.15,95747.0,95732.0,0.15084916]
[1740407174660,0.156685,95733.0,95732.0,0.15084916]
[1740407174929,0.1301238,95733.0,95732.0,0.15084916]
[1740407175102,0.1301238,95733.0,95732.0,0.04820347]
[1740407175321,0.1301238,95733.0,95731.0,0.10253334]
[1740407175489,0.208911,95735.0,95731.0,0.10253334]
[1740407175713,0.156684,95734.0,95731.0,0.10253334]
[1740407175923,0.156682,95735.0,95731.0,0.10253334]
[1740407176271,0.156684,95734.0,95732.0,0.002]
[1740407176495,0.156685,95733.0,95732.0,0.002]
[1740407176701,0.156685,95733.0,95731.0,0.10553334]
[1740407176871,0.156685,95733.0,95731.0,0.10753334]
[1740407177083,0.156685,95733.0,95731.0,0.10453334]
[1740407177458,0.208894,95742.0,95732.0,0.002]
[1740407177641,0.156685,95733.0,95732.0,0.002]
[1740407178876,0.208911,95735.0,95732.0,0.002]
[1740407178877,0.156684,95734.0,95732.0,0.002]
[1740407179077,0.156684,95734.0,95730.0,0.02436498]
[1740407179237,0.156684,95734.0,95731.0,0.003]
[1740407179438,0.156683,95735.0,95731.0,0.003]
[1740407179645,0.156679,95737.0,95730.0,0.02436498]
[1740407179849,0.156682,95735.0,95732.0,0.003]
[1740407180043,0.156685,95733.0,95732.0,0.003]
[1740407180593,0.208892,95743.0,95730.0,0.02436498]
[1740407180795,0.14544337,95731.0,95730.0,0.02436498]
[1740407180998,0.13419774,95731.0,95730.0,0.02436498]
[1740407181998,0.208915,95733.0,95730.0,0.02436498]
[1740407182242,0.156688,95732.0,95730.0,0.02436498]
[1740407182422,0.208915,95733.0,95730.0,0.02436498]
[1740407182655,0.156689,95731.0,95730.0,0.02436498]
[1740407182999,0.365602,95733.0,95730.0,0.02736498]
[1740407183356,0.365602,95733.0,95730.0,0.02936498]
[1740407183357,0.156687,95733.0,95730.0,0.02936498]
[1740407183576,0.156689,95731.0,95730.0,0.02736498]
[1740407183778,0.156689,95731.0,95730.0,0.03036498]
[1740407183938,0.156689,95731.0,95730.0,0.02436498]
[1740407184336,0.156687,95732.0,95730.0,0.02436498]
[1740407184540,0.156689,95731.0,95730.0,0.02436498]
[1740407184748,0.14233532,95731.0,95730.0,0.02436498]
[1740407185207,0.14233532,95731.0,95730.0,0.02736498]
[1740407185411,0.14233532,95731.0,95730.0,0.02936498]
[1740407185813,0.14233532,95731.0,95730.0,0.02636498]
[1740407186099,0.14233532,95731.0,95730.0,0.03236498]
[1740407186815,0.13066117,95731.0,95730.0,0.03236498]
[1740407188888,0.11903394,95731.0,95730.0,0.03236498]
[1740407190921,0.1575361,95733.0,95730.0,0.03236498]
[1740407191241,0.156689,95731.0,95730.0,0.03236498]
[1740407191915,0.0008491,95733.0,95730.0,0.03236498]
[1740407192027,0.156689,95731.0,95730.0,0.03236498]
[1740407192229,0.156689,95731.0,95730.0,0.02736498]
[1740407192491,0.156689,95731.0,95730.0,0.02436498]
[1740407192692,0.156689,95731.0,95730.0,0.02636498]
[1740407192893,0.156689,95731.0,95730.0,0.02936498]
[1740407192894,0.14439029,95731.0,95730.0,0.02936498]
[1740407193104,0.14439029,95731.0,95730.0,0.02736498]
[1740407193740,0.14439029,95731.0,95730.0,0.03036498]
[1740407194700,0.13156177,95731.0,95730.0,0.03036498]
[1740407195693,0.13241087,95731.0,95730.0,0.03036498]
[1740407196720,0.12093974,95731.0,95730.0,0.03036498]
[1740407198895,0.0008491,95731.0,95730.0,0.03036498]
[1740407199508,0.1575381,95731.0,95730.0,0.03036498]
[1740407200766,0.14356102,95731.0,95730.0,0.03036498]
[1740407202754,0.13243881,95731.0,95730.0,0.03036498]
[1740407204817,0.11996273,95731.0,95730.0,0.03036498]
[1740407205622,0.11996273,95731.0,95730.0,0.02957728]
[1740407206742,0.10815608,95731.0,95730.0,0.02957728]
[1740407206963,0.2097641,95733.0,95730.0,0.02957728]
[1740407207169,0.156689,95731.0,95730.0,0.02957728]
[1740407207760,0.156689,95731.0,95730.0,0.02657728]
[1740407208199,0.1575381,95731.0,95730.0,0.02957728]
[1740407208546,0.1575381,95731.0,95730.0,0.02657728]